fUST/lending_fUST_20240528
["ID","MTS","AMOUNT","RATE_DAILY","PERIOD"]
[328087790,1716843052444,-500.0,0.00027671,4]
[328087792,1716843052453,-500.0,0.00027671,4]
[328087794,1716843052463,-1401.49,0.00027671,4]
[328087796,1716843052472,-500.0,0.00027671,4]
[328087798,1716843052481,-500.0,0.00027671,4]
[328087800,1716843052491,-500.0,0.00027671,4]
[328087802,1716843052500,-500.0,0.00027671,4]
[328087804,1716843052510,-500.0,0.00027671,4]
[328087806,1716843052520,-1080.72,0.00027671,4]
[328087808,1716843052529,-500.0,0.00027671,4]
[328087810,1716843052538,-1582.44,0.00027671,4]
[328087812,1716843052547,-500.0,0.00027671,4]
[328087814,1716843052556,-500.0,0.00027671,4]
[328087816,1716843052566,-541.73,0.00027671,4]
[328087818,1716843052575,-500.0,0.00027671,4]
[328087820,1716843052583,-500.0,0.00027671,4]
[328087822,1716843052592,-284.190606,0.00027671,2]
[328087824,1716843052601,-500.0,0.00027671,4]
[328087826,1716843052610,-284.190606,0.00027671,2]
[328087828,1716843052619,-500.0,0.00027671,4]
[328087830,1716843052628,-500.0,0.00027671,4]
[328087832,1716843052637,-500.0,0.00027671,4]
[328087834,1716843052646,-500.0,0.00027671,4]
[328087836,1716843052655,-1273.81,0.00027671,4]
[328087837,1716843052664,-500.0,0.00027671,4]
[328087840,1716843052674,-500.0,0.00027671,4]
[328087842,1716843052684,-6360.36,0.00027671,4]
[328087844,1716843052693,-500.0,0.00027671,4]
[328087846,1716843052702,-475.06282669,0.00027671,4]
[328087847,1716843052711,-500.0,0.00027671,4]
[328087849,1716843052720,-580.2,0.00027671,4]
[328087852,1716843052729,-1980.36,0.00027671,4]
[328087854,1716843052739,-6744.91,0.00027671,4]
[328087856,1716843052748,-513.6,0.00027671,4]
[328087858,1716843052758,-500.0,0.00027671,4]
[328087860,1716843052771,-500.0,0.00027671,4]
[328087862,1716843052780,-500.0,0.00027671,4]
[328087864,1716843052790,-743.62,0.00027671,4]
[328087866,1716843052800,-3425.82,0.00027671,4]
[328087868,1716843052810,-500.0,0.00027671,4]
[328087870,1716843052820,-500.0,0.00027671,4]
[328087872,1716843052830,-500.0,0.00027671,4]
[328087874,1716843052839,-500.0,0.00027671,4]
[328087876,1716843052849,-1650.56,0.00027671,4]
[328087879,1716843052859,-2514.16,0.00027671,4]
[328087881,1716843052868,-500.0,0.00027671,4]
[328087883,1716843052878,-500.0,0.00027671,4]
[328087885,1716843052888,-500.0,0.00027671,4]
[328087887,1716843052897,-500.0,0.00027671,4]
[328087889,1716843052907,-500.0,0.00027671,4]
[328087891,1716843052919,-500.0,0.00027671,4]
[328087893,1716843052929,-1236.41,0.00027671,4]
[328087895,1716843052938,-532.74,0.00027671,4]
[328087897,1716843052949,-300.0,0.00027671,4]
[328087899,1716843052958,-500.0,0.00027671,4]
[328087901,1716843052968,-500.0,0.00027671,4]
[328087903,1716843052977,-500.0,0.00027671,4]
[328087905,1716843052987,-151.0,0.00027671,2]
[328087907,1716843052998,-151.0,0.00027671,2]
[328087910,1716843053008,-394.67,0.00027671,4]
[328087912,1716843053018,-1037.3,0.00027671,4]
[328087914,1716843053028,-500.0,0.00027671,4]
[328087916,1716843053037,-500.0,0.00027671,4]
[328087918,1716843053046,-1413.3,0.00027671,4]
[328087920,1716843053057,-2007.25,0.00027671,4]
[328087922,1716843053066,-706.56,0.00027671,4]
[328087924,1716843053076,-500.0,0.00027671,4]
[328087926,1716843053086,-358.74680417,0.00027671,4]
[328087928,1716843053096,-500.0,0.00027671,4]
[328087930,1716843053105,-500.0,0.00027671,4]
[328087932,1716843053115,-500.0,0.00027671,4]
[328087934,1716843053125,-500.0,0.00027671,4]
[328087936,1716843053135,-582.85,0.00027671,4]
[328087938,1716843053145,-758.91,0.00027671,4]
[328087940,1716843053154,-639.22,0.00027671,4]
[328087942,1716843053164,-500.0,0.00027671,4]
[328087944,1716843053173,-500.0,0.00027671,4]
[328087947,1716843053183,-500.0,0.00027671,4]
[328087949,1716843053192,-8443.48,0.00027671,4]
[328087951,1716843053202,-500.0,0.00027671,4]
[328087953,1716843053211,-570.18,0.00027671,4]
[328087955,1716843053221,-500.0,0.00027671,4]
[328087957,1716843053231,-834.84,0.00027671,4]
[328087959,1716843053241,-500.0,0.00027671,4]
[328087961,1716843053251,-500.0,0.00027671,4]
[328087963,1716843053261,-500.0,0.00027671,4]
[328087965,1716843053271,-500.0,0.00027671,4]
[328087967,1716843053281,-500.0,0.00027671,4]
[328087969,1716843053290,-500.0,0.00027671,4]
[328087971,1716843053300,-500.0,0.00027671,4]
[328087973,1716843053313,-500.0,0.00027671,4]
[328087975,1716843053323,-500.0,0.00027671,4]
[328087977,1716843053333,-689.64,0.00027671,4]
[328087979,1716843053342,-408.86,0.00027671,4]
[328087981,1716843053351,-712.19,0.00027671,4]
[328087984,1716843053362,-500.0,0.00027671,4]
[328087986,1716843053372,-500.0,0.00027671,4]
[328087988,1716843053383,-3396.27,0.00027671,4]
[328087990,1716843053393,-500.0,0.00027671,4]
[328087992,1716843053402,-500.0,0.00027671,4]
[328087994,1716843053412,-500.0,0.00027671,4]
[328087996,1716843053421,-2224.6,0.00027671,4]
[328087998,1716843053431,-973.27,0.00027671,4]
[328088000,1716843053441,-151.0,0.00027671,2]
[328088002,1716843053451,-151.0,0.00027671,2]
[328088004,1716843053460,-500.0,0.00027671,4]
[328088006,1716843053470,-500.0,0.00027671,4]
[328088008,1716843053480,-1189.25,0.00027671,2]
[328088010,1716843053490,-151.0,0.00027671,2]
[328088012,1716843053500,-151.0,0.00027671,2]
[328088014,1716843053510,-500.0,0.00027671,4]
[328088016,1716843053519,-500.0,0.00027671,4]
[328088018,1716843053529,-500.0,0.00027671,4]
[328088020,1716843053538,-151.0,0.00027671,2]
[328088022,1716843053548,-151.0,0.00027671,2]
[328088024,1716843053558,-791.94,0.00027671,4]
[328088026,1716843053567,-500.0,0.00027671,4]
[328088027,1716843053577,-267.210551,0.00027671,2]
[328088028,1716843053587,-328.54118713,0.00027671,4]
[328088029,1716843053596,-1320.29,0.00027671,4]
[328088030,1716843053606,-924.49,0.00027671,4]
[328088032,1716843053616,-500.0,0.00027671,4]
[328088034,1716843053625,-500.0,0.00027671,4]
[328088036,1716843053635,-928.898094,0.00027671,2]
[328088038,1716843053645,-928.898094,0.00027671,2]
[328088040,1716843053655,-500.0,0.00027671,4]
[328088043,1716843053665,-1551.94,0.00027671,4]
[328088045,1716843053675,-928.898094,0.00027671,2]
[328088047,1716843053685,-928.898094,0.00027671,2]
[328088049,1716843053694,-3777.76,0.00027671,4]
[328088051,1716843053704,-500.0,0.00027671,4]
[328088053,1716843053713,-500.0,0.00027671,4]
[328088055,1716843053722,-500.0,0.00027671,4]
[328088057,1716843053732,-500.0,0.00027671,4]
[328088059,1716843053742,-1681.8,0.00027671,4]
[328088061,1716843053751,-878.5,0.00027671,4]
[328088063,1716843053762,-2991.36,0.00027671,4]
[328088065,1716843053771,-151.0,0.00027671,2]
[328088067,1716843053781,-151.0,0.00027671,2]
[328088069,1716843053790,-500.0,0.00027671,4]
[328088071,1716843053801,-500.0,0.00027671,4]
[328088073,1716843053810,-500.0,0.00027671,4]
[328088076,1716843053820,-648.84,0.00027671,4]
[328088078,1716843053829,-11747.98,0.00027671,4]
[328088080,1716843053840,-1121.64,0.00027671,4]
[328088082,1716843053850,-500.0,0.00027671,4]
[328088084,1716843053860,-190.669061,0.00027671,2]
[328088086,1716843053869,-190.669061,0.00027671,2]
[328088088,1716843053878,-190.669061,0.00027671,2]
[328088090,1716843053888,-190.669061,0.00027671,2]
[328088092,1716843053898,-500.0,0.00027671,4]
[328088094,1716843053907,-554.26,0.00027671,4]
[328088096,1716843053917,-10916.46,0.00027671,4]
[328088098,1716843053926,-500.0,0.00027671,4]
[328088100,1716843053937,-795.94,0.00027671,4]
[328088103,1716843053946,-670.9,0.00027671,4]
[328088105,1716843053956,-154.68,0.00027671,4]
[328088107,1716843053965,-615.59,0.00027671,4]
[328088109,1716843053975,-1466.54,0.00027671,4]
[328088111,1716843053984,-532.01,0.00027671,4]
[328088113,1716843053993,-500.0,0.00027671,4]
[328088115,1716843054003,-484.15978169,0.00027673,2]
[328088117,1716843054014,-500.0,0.00027808,2]
[328088119,1716843054023,-500.0,0.00027945,4]
[328088121,1716843054033,-500.0,0.00027945,4]
[328088123,1716843054043,-500.0,0.00027945,4]
[328088125,1716843054052,-500.0,0.00027945,4]
[328088127,1716843054062,-500.0,0.00027945,4]
[328088130,1716843054072,-500.0,0.00027945,4]
[328088132,1716843054088,-500.0,0.00027945,4]
[328088135,1716843054102,-500.0,0.00027945,4]
[328088137,1716843054112,-500.0,0.00027945,4]
[328088139,1716843054122,-500.0,0.00027945,4]
[328088141,1716843054133,-500.0,0.00027945,4]
[328088143,1716843054143,-620.66,0.00027945,4]
[328088146,1716843054153,-500.0,0.00027945,4]
[328088148,1716843054164,-631.58,0.00027945,4]
[328088150,1716843054174,-546.76,0.00027945,4]
[328088152,1716843054185,-151.0,0.00027945,2]
[328088154,1716843054195,-151.0,0.00027945,2]
[328088156,1716843054206,-500.0,0.00027945,4]
[328088159,1716843054217,-500.0,0.00027945,4]
[328088161,1716843054227,-500.0,0.00027945,4]
[328088163,1716843054237,-151.0,0.00027945,2]
[328088165,1716843054247,-500.0,0.00027945,4]
[328088167,1716843054258,-500.0,0.00027945,4]
[328088169,1716843054271,-500.0,0.00027945,4]
[328088171,1716843054281,-500.0,0.00027945,4]
[328088173,1716843054290,-500.0,0.00027945,4]
[328088175,1716843054299,-525.95,0.00027945,4]
[328088177,1716843054310,-500.0,0.00027945,4]
[328088179,1716843054322,-500.0,0.00027945,4]
[328088181,1716843054332,-918.87,0.00027945,4]
[328088183,1716843054342,-500.0,0.00027945,4]
[328088186,1716843054354,-500.0,0.00027945,4]
[328088188,1716843054365,-500.0,0.00027945,4]
[328088190,1716843054376,-500.0,0.00027945,4]
[328088192,1716843054387,-500.0,0.00027945,4]
[328088194,1716843054398,-500.0,0.00027945,4]
[328088196,1716843054409,-579.64,0.00027945,4]
[328088198,1716843054420,-524.92,0.00027945,4]
[328088200,1716843054430,-500.0,0.00027945,4]
[328088203,1716843054440,-500.0,0.00027945,4]
[328088205,1716843054450,-500.0,0.00027945,4]
[328088207,1716843054461,-520.665785,0.00027945,2]
[328088209,1716843054472,-520.665785,0.00027945,2]
[328088211,1716843054482,-500.0,0.00027945,4]
[328088213,1716843054493,-520.665785,0.00027945,2]
[328088215,1716843054503,-500.0,0.00027945,4]
[328088218,1716843054517,-520.665785,0.00027945,2]
[328088220,1716843054527,-500.0,0.00027945,4]
[328088222,1716843054538,-500.0,0.00027945,4]
[328088224,1716843054548,-500.0,0.00027945,4]
[328088226,1716843054559,-558.71,0.00027945,4]
[328088229,1716843054569,-500.0,0.00027945,4]
[328088231,1716843054579,-500.0,0.00027945,4]
[328088233,1716843054589,-1034.59,0.00027945,4]
[328088235,1716843054599,-1141.61,0.00027945,4]
[328088237,1716843054609,-540.44,0.00027945,2]
[328088239,1716843054619,-500.0,0.00027945,4]
[328088241,1716843054630,-5.95996176,0.00027945,4]
[328088268,1716843054999,-500.0,0.00027397,4]
[328088269,1716843055009,-724.46,0.00027671,4]
[328088270,1716843055020,-494.04003824,0.00027945,4]
[328088271,1716843055029,-593.51,0.00027945,4]
[328088272,1716843055038,-500.0,0.00027945,4]
[328088273,1716843055047,-1608.47,0.00027945,4]
[328088274,1716843055056,-845.73,0.00027945,4]
[328088275,1716843055065,-500.0,0.00027945,4]
[328088276,1716843055074,-394.83135904,0.00027945,4]
[328088313,1716843056035,-204.7368025,0.00025753,2]
[328088315,1716843056044,-60.55338343,0.0002699,3]
[328088317,1716843056056,-1987.68655784,0.0002699,3]
[328088319,1716843056068,-1074.74248231,0.0002699,3]
[328088321,1716843056079,-8423.69554198,0.0002699,3]
[328088323,1716843056092,-5457.46070493,0.0002699,3]
[328088326,1716843056103,-3477.5,0.0002699,3]
[328088328,1716843056116,-451.01132951,0.0002699,3]
[328088330,1716843056125,-105.16864096,0.00027945,4]
[328088332,1716843056135,-151.0,0.00027945,2]
[328088334,1716843056144,-500.0,0.00027945,4]
[328088336,1716843056153,-551.55,0.00027945,4]
[328088338,1716843056162,-589.26,0.00027945,4]
[328088340,1716843056172,-500.0,0.00027945,4]
[328088342,1716843056181,-500.0,0.00027945,4]
[328088344,1716843056191,-564.88,0.00027945,4]
[328088346,1716843056200,-680.42,0.00027945,4]
[328088348,1716843056210,-500.0,0.00027945,4]
[328088350,1716843056220,-359.23,0.00027945,4]
[328088352,1716843056229,-500.0,0.00027945,4]
[328088354,1716843056238,-500.0,0.00027945,4]
[328088355,1716843056248,-1698.89,0.00027945,4]
[328088357,1716843056257,-500.0,0.00027945,4]
[328088359,1716843056267,-500.0,0.00027945,4]
[328088361,1716843056277,-500.0,0.00027945,4]
[328088363,1716843056286,-1240.4,0.00027945,4]
[328088365,1716843056295,-500.0,0.00027945,4]
[328088367,1716843056305,-500.0,0.00027945,4]
[328088369,1716843056318,-532.39,0.00027945,4]
[328088371,1716843056328,-1487.07,0.00027945,4]
[328088373,1716843056337,-500.0,0.00027945,4]
[328088375,1716843056346,-867.15,0.00027945,4]
[328088377,1716843056357,-500.0,0.00027945,4]
[328088379,1716843056368,-500.0,0.00027945,4]
[328088381,1716843056378,-1401.49,0.00027945,4]
[328088383,1716843056389,-500.0,0.00027945,4]
[328088385,1716843056399,-500.0,0.00027945,4]
[328088387,1716843056408,-500.0,0.00027945,4]
[328088389,1716843056418,-500.0,0.00027945,4]
[328088391,1716843056427,-500.0,0.00027945,4]
[328088393,1716843056436,-1080.72,0.00027945,4]
[328088395,1716843056446,-500.0,0.00027945,4]
[328088397,1716843056455,-1582.44,0.00027945,4]
[328088399,1716843056465,-500.0,0.00027945,4]
[328088401,1716843056475,-647.74577024,0.00027945,4]
[328088403,1716843056485,-541.73,0.00027945,4]
[328088405,1716843056494,-500.0,0.00027945,4]
[328088407,1716843056503,-634.08,0.00027945,4]
[328088409,1716843056513,-284.190606,0.00027945,2]
[328088411,1716843056522,-500.0,0.00027945,4]
[328088412,1716843056531,-284.190606,0.00027945,2]
[328088415,1716843056541,-500.0,0.00027945,4]
[328088416,1716843056550,-500.0,0.00027945,4]
[328088418,1716843056560,-500.0,0.00027945,4]
[328088420,1716843056570,-1273.81,0.00027945,4]
[328088422,1716843056580,-283.98,0.00027945,4]
[328088424,1716843056589,-500.0,0.00027945,4]
[328088426,1716843056599,-6360.36,0.00027945,4]
[328088428,1716843056608,-500.0,0.00027945,4]
[328088430,1716843056618,-500.0,0.00027945,4]
[328088432,1716843056627,-580.2,0.00027945,4]
[328088435,1716843056637,-1980.36,0.00027945,4]
[328088436,1716843056646,-6744.91,0.00027945,4]
[328088438,1716843056656,-513.6,0.00027945,4]
[328088440,1716843056666,-500.0,0.00027945,4]
[328088442,1716843056675,-500.0,0.00027945,4]
[328088444,1716843056684,-500.0,0.00027945,4]
[328088446,1716843056694,-743.62,0.00027945,4]
[328088448,1716843056703,-3425.82,0.00027945,4]
[328088450,1716843056712,-404.91392084,0.00027945,4]
[328088452,1716843056721,-500.0,0.00027945,4]
[328088454,1716843056730,-500.0,0.00027945,4]
[328088456,1716843056740,-1650.56,0.00027945,4]
[328088458,1716843056750,-2514.16,0.00027945,4]
[328088460,1716843056759,-500.0,0.00027945,4]
[328088462,1716843056769,-500.0,0.00027945,4]
[328088464,1716843056779,-500.0,0.00027945,4]
[328088466,1716843056788,-500.0,0.00027945,4]
[328088468,1716843056797,-500.0,0.00027945,4]
[328088470,1716843056807,-500.0,0.00027945,4]
[328088472,1716843056815,-1236.41,0.00027945,4]
[328088473,1716843056824,-532.74,0.00027945,4]
[328088476,1716843056834,-500.0,0.00027945,4]
[328088477,1716843056843,-500.0,0.00027945,4]
[328088479,1716843056852,-500.0,0.00027945,4]
[328088481,1716843056862,-151.0,0.00027945,2]
[328088483,1716843056871,-1037.3,0.00027945,4]
[328088485,1716843056880,-500.0,0.00027945,4]
[328088487,1716843056890,-1413.3,0.00027945,4]
[328088489,1716843056900,-2007.25,0.00027945,4]
[328088491,1716843056909,-706.56,0.00027945,4]
[328088493,1716843056920,-500.0,0.00027945,4]
[328088495,1716843056930,-500.0,0.00027945,4]
[328088497,1716843056939,-500.0,0.00027945,4]
[328088499,1716843056948,-500.0,0.00027945,4]
[328088501,1716843056958,-500.0,0.00027945,4]
[328088503,1716843056968,-582.85,0.00027945,4]
[328088505,1716843056978,-758.91,0.00027945,4]
[328088507,1716843056987,-639.22,0.00027945,4]
[328088509,1716843056996,-170.01,0.00027945,4]
[328088511,1716843057005,-8443.48,0.00027945,4]
[328088513,1716843057016,-500.0,0.00027945,4]
[328088515,1716843057025,-570.18,0.00027945,4]
[328088517,1716843057034,-500.0,0.00027945,4]
[328088519,1716843057043,-834.84,0.00027945,4]
[328088521,1716843057052,-500.0,0.00027945,4]
[328088523,1716843057061,-500.0,0.00027945,4]
[328088525,1716843057070,-500.0,0.00027945,4]
[328088527,1716843057079,-500.0,0.00027945,4]
[328088529,1716843057089,-500.0,0.00027945,4]
[328088531,1716843057098,-500.0,0.00027945,4]
[328088533,1716843057107,-442.21237382,0.00027945,4]
[328088534,1716843057116,-689.64,0.00027945,4]
[328088536,1716843057125,-712.19,0.00027945,4]
[328088538,1716843057135,-500.0,0.00027945,4]
[328088540,1716843057144,-500.0,0.00027945,4]
[328088542,1716843057153,-3396.27,0.00027945,4]
[328088544,1716843057162,-500.0,0.00027945,4]
[328088545,1716843057171,-2224.6,0.00027945,4]
[328088546,1716843057181,-973.27,0.00027945,4]
[328088547,1716843057190,-151.0,0.00027945,2]
[328088548,1716843057199,-500.0,0.00027945,4]
[328088549,1716843057210,-500.0,0.00027945,4]
[328088550,1716843057221,-1189.25,0.00027945,2]
[328088551,1716843057230,-174.60708164,0.00027945,4]
[328088552,1716843057239,-269.80094,0.00027945,2]
[328088553,1716843057248,-500.0,0.00027945,4]
[328088554,1716843057257,-151.0,0.00027945,2]
[328088555,1716843057267,-791.94,0.00027945,4]
[328088556,1716843057276,-500.0,0.00027945,4]
[328088557,1716843057285,-1320.29,0.00027945,4]
[328088558,1716843057295,-924.49,0.00027945,4]
[328088559,1716843057304,-500.0,0.00027945,4]
[328088560,1716843057317,-928.898094,0.00027945,2]
[328088561,1716843057326,-500.0,0.00027945,4]
[328088562,1716843057336,-1551.94,0.00027945,4]
[328088564,1716843057345,-3777.76,0.00027945,4]
[328088566,1716843057354,-928.898094,0.00027945,2]
[328088568,1716843057367,-597.1199252,0.00027945,4]
[328088570,1716843057376,-500.0,0.00027945,4]
[328088572,1716843057385,-500.0,0.00027945,4]
[328088574,1716843057396,-500.0,0.00027945,4]
[328088576,1716843057406,-878.5,0.00027945,4]
[328088577,1716843057415,-1681.8,0.00027945,4]
[328088580,1716843057424,-2991.36,0.00027945,4]
[328088581,1716843057433,-151.0,0.00027945,2]
[328088583,1716843057443,-500.0,0.00027945,4]
[328088585,1716843057452,-500.0,0.00027945,4]
[328088587,1716843057462,-500.0,0.00027945,4]
[328088589,1716843057471,-648.84,0.00027945,4]
[328088591,1716843057480,-11747.98,0.00027945,4]
[328088593,1716843057490,-1121.64,0.00027945,4]
[328088595,1716843057499,-500.0,0.00027945,4]
[328088597,1716843057508,-190.669061,0.00027945,2]
[328088599,1716843057518,-190.669061,0.00027945,2]
[328088601,1716843057528,-609.16,0.00027945,4]
[328088603,1716843057538,-554.26,0.00027945,4]
[328088605,1716843057547,-10916.46,0.00027945,4]
[328088607,1716843057557,-500.0,0.00027945,4]
[328088609,1716843057567,-795.94,0.00027945,4]
[328088611,1716843057577,-670.9,0.00027945,4]
[328088613,1716843057586,-615.59,0.00027945,4]
[328088615,1716843057595,-1466.54,0.00027945,4]
[328088617,1716843057604,-532.01,0.00027945,4]
[328088619,1716843057614,-500.0,0.00027945,4]
[328088621,1716843057623,-724.46,0.00027945,4]
[328088623,1716843057632,-221.8508194,0.00028,2]
[328088626,1716843057642,-421.0,0.00028,2]
[328088628,1716843057651,-849.50397076,0.00028031,2]
[328088629,1716843057661,-161.19769318,0.00028068,2]
[328088631,1716843057670,-492.7,0.00028082,2]
[328088633,1716843057680,-398.48813171,0.00028097,2]
[328088635,1716843057690,-600.0,0.00028142,2]
[328088638,1716843057699,-484.15978169,0.00028146,2]
[328088640,1716843057709,-470.77977346,0.00028155,2]
[328088641,1716843057718,-504.82026978,0.00028175,2]
[328088644,1716843057728,-569.23657486,0.00028218,2]
[328088645,1716843057737,-500.0,0.00028219,4]
[328088647,1716843057747,-500.0,0.00028219,4]
[328088650,1716843057757,-500.0,0.00028219,4]
[328088652,1716843057766,-500.0,0.00028219,4]
[328088653,1716843057775,-500.0,0.00028219,4]
[328088655,1716843057784,-500.0,0.00028219,4]
[328088657,1716843057793,-500.0,0.00028219,4]
[328088659,1716843057802,-500.0,0.00028219,4]
[328088661,1716843057811,-500.0,0.00028219,4]
[328088663,1716843057820,-620.66,0.00028219,4]
[328088665,1716843057829,-500.0,0.00028219,4]
[328088667,1716843057838,-631.58,0.00028219,4]
[328088669,1716843057848,-151.0,0.00028219,2]
[328088671,1716843057857,-151.0,0.00028219,2]
[328088673,1716843057866,-500.0,0.00028219,4]
[328088675,1716843057875,-500.0,0.00028219,4]
[328088677,1716843057884,-151.0,0.00028219,2]
[328088679,1716843057893,-500.0,0.00028219,4]
[328088681,1716843057902,-500.0,0.00028219,4]
[328088683,1716843057911,-370.19100417,0.00028219,4]
[328088685,1716843057920,-500.0,0.00028219,4]
[328088687,1716843057929,-500.0,0.00028219,4]
[328088689,1716843057939,-525.95,0.00028219,4]
[328088691,1716843057948,-500.0,0.00028219,4]
[328088693,1716843057957,-500.0,0.00028219,4]
[328088695,1716843057966,-918.87,0.00028219,4]
[328088697,1716843057975,-500.0,0.00028219,4]
[328088699,1716843057984,-500.0,0.00028219,4]
[328088701,1716843057994,-500.0001,0.00028219,4]
[328088703,1716843058003,-500.0,0.00028219,4]
[328088705,1716843058012,-500.0,0.00028219,4]
[328088707,1716843058022,-579.64,0.00028219,4]
[328088709,1716843058031,-524.92,0.00028219,4]
[328088711,1716843058040,-500.0,0.00028219,4]
[328088713,1716843058050,-500.0,0.00028219,4]
[328088715,1716843058059,-500.0,0.00028219,4]
[328088717,1716843058069,-520.665785,0.00028219,2]
[328088719,1716843058079,-500.0,0.00028219,4]
[328088721,1716843058088,-500.0,0.00028219,4]
[328088723,1716843058097,-520.665785,0.00028219,2]
[328088725,1716843058106,-500.0,0.00028219,4]
[328088727,1716843058116,-500.0,0.00028219,4]
[328088729,1716843058125,-500.0,0.00028219,4]
[328088731,1716843058134,-558.71,0.00028219,4]
[328088733,1716843058143,-500.0,0.00028219,4]
[328088735,1716843058152,-500.0,0.00028219,4]
[328088749,1716843058162,-1034.59,0.00028219,4]
[328088752,1716843058296,-1141.61,0.00028219,4]
[328088754,1716843058306,-540.44,0.00028219,2]
[328088756,1716843058318,-500.0,0.00028219,4]
[328088758,1716843058327,-500.0,0.00028219,4]
[328088760,1716843058336,-593.51,0.00028219,4]
[328088762,1716843058346,-500.0,0.00028219,4]
[328088764,1716843058355,-1608.47,0.00028219,4]
[328088766,1716843058364,-845.73,0.00028219,4]
[328088768,1716843058373,-500.0,0.00028219,4]
[328088770,1716843058382,-500.0,0.00028219,4]
[328088772,1716843058392,-151.0,0.00028219,2]
[328088774,1716843058402,-500.0,0.00028219,4]
[328088776,1716843058412,-551.55,0.00028219,4]
[328088778,1716843058421,-589.26,0.00028219,4]
[328088780,1716843058429,-500.0,0.00028219,4]
[328088782,1716843058438,-500.0,0.00028219,4]
[328088784,1716843058447,-564.88,0.00028219,4]
[328088786,1716843058456,-680.42,0.00028219,4]
[328088787,1716843058465,-324.9,0.00028219,4]
[328088789,1716843058475,-500.0,0.00028219,4]
[328088791,1716843058484,-500.0,0.00028219,4]
[328088793,1716843058493,-1698.89,0.00028219,4]
[328088796,1716843058502,-500.0,0.00028219,4]
[328088798,1716843058511,-500.0,0.00028219,4]
[328088800,1716843058521,-1240.4,0.00028219,4]
[328088802,1716843058530,-500.36885787,0.00028219,4]
[328088804,1716843058539,-500.0,0.00028219,4]
[328088806,1716843058549,-500.0,0.00028219,4]
[328088808,1716843058558,-532.39,0.00028219,4]
[328088810,1716843058567,-1487.07,0.00028219,4]
[328088812,1716843058575,-500.0,0.00028219,4]
[328088814,1716843058584,-867.15,0.00028219,4]
[328088815,1716843058593,-500.0,0.00028219,4]
[328088817,1716843058601,-500.0,0.00028219,4]
[328088820,1716843058611,-1401.49,0.00028219,4]
[328088821,1716843058620,-500.0,0.00028219,4]
[328088823,1716843058630,-500.0,0.00028219,4]
[328088826,1716843058639,-500.0,0.00028219,4]
[328088827,1716843058649,-500.0,0.00028219,4]
[328088829,1716843058659,-500.0,0.00028219,4]
[328088831,1716843058668,-1080.72,0.00028219,4]
[328088833,1716843058677,-500.0,0.00028219,4]
[328088835,1716843058686,-1582.44,0.00028219,4]
[328088837,1716843058696,-500.0,0.00028219,4]
[328088839,1716843058705,-541.73,0.00028219,4]
[328088841,1716843058714,-500.0,0.00028219,4]